bitfinex/quotes_SOLUSD_20251224
["timestamp","ask_amount","ask_price","bid_price","bid_amount"]
[1766601522372,8.86065619,122.39,122.35,2.52554219]
[1766601522555,0.69,122.38,122.34,0.11846131]
[1766601522762,0.69,122.38,122.35,1.81554219]
[1766601527175,0.69,122.38,122.35,2.52554219]
[1766601527481,0.69,122.38,122.35,1.81554219]
[1766601527667,0.69,122.38,122.36,1.81554219]
[1766601528185,0.69,122.38,122.36,2.83787104]
[1766601529885,0.69,122.39,122.37,2.83787104]
[1766601530567,0.69,122.39,122.36,2.83787104]
[1766601530774,0.69,122.36,122.32,0.2]
[1766601530975,0.69,122.35,122.32,0.2]
[1766601531177,0.69,122.35,122.33,2.83787104]
[1766601532266,26.78634281,122.37,122.33,2.83787104]
[1766601532267,0.69,122.36,122.34,2.83787104]
[1766601534496,0.69,122.36,122.33,3.54787104]
[1766601537185,0.69,122.36,122.32,3.74787104]
[1766601537386,0.69,122.36,122.33,0.71]
[1766601537787,0.69,122.35,122.32,3.74787104]
[1766601537967,0.69,122.35,122.32,3.03787104]
[1766601538167,0.69,122.35,122.33,0.71]
[1766601538575,0.69,122.35,122.32,3.74787104]
[1766601541300,0.69,122.36,122.33,3.54787104]
[1766601541818,0.69,122.36,122.33,0.71]
[1766601545407,0.69,122.36,122.32,3.03787104]
[1766601545707,0.69,122.36,122.33,0.71]
[1766601547318,0.69,122.36,122.33,3.54787104]
[1766601547813,18.60995354,122.37,122.34,3.50787104]
[1766601547998,19.27995354,122.37,122.34,3.50787104]
[1766601548315,23.09563548,122.38,122.36,2.83787104]
[1766601548615,23.76563548,122.38,122.35,3.50787104]
[1766601548915,0.67,122.38,122.35,3.50787104]
[1766601550892,0.67,122.38,122.36,2.83787104]
[1766601551902,8.84080663,122.39,122.36,3.50787104]
[1766601554092,0.67,122.41,122.38,3.50787104]
[1766601554503,8.1687937,122.42,122.4,2.83787104]
[1766601554692,8.8387937,122.42,122.4,2.83787104]
[1766601557324,0.67,122.41,122.39,2.83787104]
[1766601558539,8.8387937,122.42,122.39,3.50787104]
[1766601558832,0.67,122.41,122.39,2.83787104]
[1766601563216,0.67,122.41,122.38,0.67]
[1766601563430,0.67,122.41,122.39,2.83787104]
[1766601564222,0.67,122.41,122.39,3.50787104]
[1766601564821,0.67,122.42,122.39,3.50787104]
[1766601565032,0.67,122.42,122.4,2.83787104]
[1766601567443,0.67,122.42,122.39,3.50787104]
[1766601569643,0.67,122.42,122.39,0.67]
[1766601569845,0.67,122.42,122.39,3.50787104]
[1766601572734,0.67,122.42,122.39,0.67]
[1766601573051,0.67,122.42,122.39,3.50787104]
[1766601573746,0.67,122.42,122.4,2.83787104]
[1766601573923,29.61564535,122.44,122.41,3.50787104]
[1766601573924,11.10767296,122.44,122.41,3.50787104]
[1766601574124,11.10767296,122.44,122.42,2.83787104]
[1766601575341,11.10767296,122.44,122.41,3.50787104]
[1766601580148,11.10767296,122.44,122.41,0.67]
[1766601580355,0.69,122.43,122.39,18.47787104]
[1766601581236,0.69,122.43,122.4,0.72]
[1766601583148,0.69,122.43,122.4,3.55787104]
[1766601586956,0.69,122.43,122.4,0.72]
[1766601587158,0.69,122.43,122.4,3.55787104]
[1766601589953,0.69,122.43,122.4,2.53502658]
[1766601597170,18.60505646,122.44,122.41,1.81502658]
[1766601597171,10.43767296,122.44,122.41,1.81502658]
[1766601597337,118.82,122.46,122.43,1.81502658]
[1766601597338,0.69,122.45,122.43,1.81502658]
[1766601599161,112.06597213,122.46,122.43,2.53502658]
[1766601599162,112.75597213,122.46,122.43,2.53502658]
[1766601599542,0.69,122.45,122.43,0.72]
[1766601599750,10.43767296,122.46,122.44,1.81502658]
[1766601599960,10.43767296,122.46,122.45,1.81502658]
[1766601600136,10.43767296,122.46,122.44,2.53502658]
[1766601600336,11.12767296,122.46,122.44,1.81502658]
[1766601600555,11.12767296,122.46,122.43,0.72]
[1766601600758,11.12767296,122.46,122.44,2.53502658]
[1766601601253,0.69,122.45,122.43,1.81502658]
[1766601601661,10.43767296,122.46,122.42,16.73502658]
[1766601601963,19.29371244,122.46,122.43,2.53502658]
[1766601603866,0.69,122.45,122.41,0.72]
[1766601604166,0.69,122.45,122.41,1.81502658]
[1766601604463,0.69,122.45,122.42,0.72]
[1766601605046,0.69,122.45,122.42,2.53502658]
[1766601605253,0.69,122.45,122.42,1.81502658]
[1766601606275,0.69,122.44,122.41,1.81502658]
[1766601606481,0.69,122.44,122.4,16.73502658]
[1766601606773,0.69,122.44,122.41,1.81502658]
[1766601607265,0.66,122.43,122.41,1.81502658]
[1766601607953,0.66,122.44,122.41,2.48502658]
[1766601608561,0.66,122.45,122.42,2.48502658]
[1766601608767,0.66,122.45,122.43,1.81502658]
[1766601609969,0.66,122.45,122.42,2.48502658]
[1766601610155,0.66,122.45,122.43,1.81502658]
[1766601611271,123.16388901,122.46,122.43,2.48502658]
[1766601611446,123.16388901,122.46,122.44,1.81502658]
[1766601611847,0.66,122.45,122.44,1.81502658]
[1766601614373,0.66,122.45,122.43,2.48502658]
[1766601615166,0.66,122.45,122.42,1.81502658]
[1766601615472,0.66,122.45,122.42,2.48502658]
[1766601620975,0.66,122.45,122.42,1.81502658]
[1766601621186,0.66,122.45,122.43,0.67]
[1766601622479,122.50388901,122.46,122.43,0.67]
[1766601622662,123.16388901,122.46,122.43,0.67]
[1766601622863,0.66,122.45,122.42,2.48502658]
[1766601623253,0.66,122.45,122.42,0.67]
[1766601623454,0.66,122.45,122.42,2.48502658]
[1766601624348,0.66,122.45,122.42,0.67]
[1766601624766,0.66,122.45,122.42,2.48502658]
[1766601627079,0.66,122.45,122.42,0.67]
[1766601628376,0.66,122.45,122.42,2.48502658]
[1766601630882,0.66,122.45,122.42,0.67]
[1766601631183,0.66,122.45,122.42,2.48502658]
[1766601632291,8.82667519,122.45,122.42,0.67]
[1766601632461,0.66,122.44,122.41,0.67]
[1766601634793,0.66,122.44,122.41,2.48502658]
[1766601635691,0.66,122.44,122.41,0.67]
[1766601635876,0.66,122.44,122.41,2.48502658]
[1766601638695,8.16793269,122.43,122.41,2.48502658]
[1766601638894,8.8273648,122.44,122.41,2.48502658]
[1766601639096,0.66,122.44,122.41,2.48502658]
[1766601644798,0.66,122.44,122.41,0.67]
[1766601652434,0.66,122.44,122.41,3.50567873]
[1766601656430,0.72,122.43,122.38,2.83567873]
[1766601656639,0.72,122.43,122.39,0.7]
[1766601658033,0.72,122.42,122.39,0.7]
[1766601658438,8.88860899,122.42,122.39,0.7]
[1766601658624,0.72,122.41,122.39,0.7]
[1766601659316,0.72,122.42,122.4,0.7]
[1766601659509,0.72,122.42,122.39,3.53567873]
[1766601661018,0.72,122.42,122.39,0.7]
[1766601661219,0.72,122.42,122.39,3.53567873]
[1766601661947,0.72,122.43,122.41,0.7]
[1766601662119,0.72,122.43,122.4,2.83567873]
[1766601662438,0.72,122.43,122.4,3.53567873]
[1766601662942,0.72,122.43,122.4,0.7]
[1766601663943,0.72,122.43,122.4,3.53567873]
[1766601664751,0.72,122.44,122.41,3.53567873]
[1766601664935,0.72,122.44,122.41,0.7]
[1766601666728,0.72,122.44,122.4,3.53567873]
[1766601667432,0.72,122.44,122.4,2.83567873]
[1766601667632,0.72,122.44,122.41,0.67]
[1766601667848,0.72,122.44,122.41,3.50567873]
[1766601669333,0.72,122.44,122.41,0.67]
[1766601669542,0.72,122.44,122.41,3.50567873]
[1766601673155,0.72,122.44,122.42,3.50567873]
[1766601674542,0.72,122.44,122.41,2.83567873]
[1766601674741,0.72,122.44,122.41,3.50567873]
[1766601675052,0.72,122.44,122.41,2.83567873]
[1766601675261,0.72,122.44,122.41,3.50567873]
[1766601675437,0.72,122.44,122.42,3.50567873]
[1766601675636,0.72,122.44,122.42,2.83567873]
[1766601676453,0.72,122.44,122.42,3.50567873]
[1766601676857,130.67405849,122.46,122.43,2.83567873]
[1766601677151,15.02,122.47,122.45,2.83567873]
[1766601677152,0.1,122.47,122.45,2.83567873]
[1766601678852,0.76,122.47,122.45,2.83567873]
[1766601681659,8.92545166,122.47,122.45,2.83567873]
[1766601682757,8.92545166,122.47,122.46,3.50567873]
[1766601682758,10.53767296,122.47,122.46,3.50567873]
[1766601683057,0.1,122.48,122.47,0.67]
[1766601683235,0.1,122.48,122.47,3.50567873]
[1766601683434,0.1,122.48,122.46,3.50567873]
[1766601684049,0.1,122.48,122.47,0.67]
[1766601686242,0.1,122.48,122.47,3.50567873]
[1766601687565,0.1,122.48,122.47,0.67]
[1766601688565,0.1,122.48,122.47,3.50567873]
[1766601690858,0.1,122.48,122.47,0.67]
[1766601691045,0.1,122.48,122.47,3.50567873]
[1766601691561,0.1,122.48,122.47,0.67]
[1766601692945,0.66,122.5,122.47,3.50567873]
[1766601697355,0.66,122.5,122.47,3.55567873]
[1766601699175,8.82328434,122.5,122.47,3.55567873]
[1766601699381,8.16328434,122.5,122.47,0.72]
[1766601699578,8.88328434,122.5,122.47,0.72]
[1766601707474,0.72,122.5,122.47,0.72]
[1766601707680,0.72,122.5,122.47,3.55567873]
[1766601711999,0.72,122.5,122.47,2.53302072]
[1766601713481,10.43767296,122.51,122.49,0.72]
[1766601713686,0.1,122.52,122.46,8.16558045]
[1766601713885,0.1,122.52,122.47,2.53302072]
[1766601713886,0.72,122.51,122.47,2.53302072]
[1766601714181,0.72,122.51,122.48,0.72]
[1766601715400,0.72,122.5,122.46,1.81302072]
[1766601715695,0.72,122.5,122.47,0.72]
[1766601718207,0.72,122.5,122.47,2.53302072]
[1766601718509,0.72,122.5,122.48,0.72]
[1766601718804,19.32073696,122.51,122.48,2.53302072]
[1766601723084,0.72,122.5,122.48,0.72]
[1766601723293,0.72,122.5,122.48,2.53302072]
[1766601724399,0.72,122.5,122.48,0.72]
[1766601727496,19.27073696,122.51,122.48,0.72]
[1766601727710,0.67,122.5,122.48,2.53302072]
[1766601728306,0.67,122.5,122.48,0.72]
[1766601728504,18.60073696,122.51,122.48,2.53302072]
[1766601728810,19.27073696,122.51,122.48,2.53302072]
[1766601730523,19.27073696,122.51,122.48,0.72]
[1766601732524,8.8333132,122.5,122.47,0.71]
[1766601733924,8.1633132,122.5,122.47,0.71]
[1766601734114,0.67,122.49,122.47,0.71]
[1766601735737,8.8333132,122.5,122.47,0.71]
[1766601737028,8.8333132,122.5,122.47,2.52302072]
[1766601739630,0.67,122.5,122.47,2.52302072]
[1766601742728,0.67,122.5,122.47,0.71]
[1766601742908,0.67,122.5,122.47,2.52302072]
[1766601745637,0.67,122.5,122.47,1.81302072]
[1766601745929,0.67,122.5,122.48,0.71]
[1766601748135,0.67,122.5,122.45,23.08628512]
[1766601748136,8.83328119,122.5,122.47,1.81302072]
[1766601748317,8.83328119,122.5,122.47,2.52302072]
[1766601749037,0.67,122.5,122.47,2.52302072]
[1766601751938,18.60070605,122.51,122.48,0.71]
[1766601752118,19.27070605,122.51,122.48,0.71]
[1766601754940,0.67,122.5,122.47,2.52302072]
[1766601755541,0.67,122.5,122.47,0.71]
[1766601758138,11.10767296,122.51,122.47,0.71]
[1766601758342,8.26227275,122.52,122.47,0.71]
[1766601758343,0.77,122.52,122.49,0.71]
[1766601758540,0.77,122.52,122.49,2.52302072]
[1766601758738,0.77,122.52,122.49,0.71]
[1766601759344,0.67,122.51,122.47,0.71]
[1766601759726,0.67,122.48,122.45,0.71]
[1766601760334,19.2718735,122.49,122.45,0.71]
[1766601760639,11.10767296,122.49,122.46,0.71]
[1766601768348,19.27160836,122.49,122.46,0.71]
[1766601770253,11.10767296,122.49,122.46,0.71]
[1766601775156,19.27163787,122.49,122.46,0.71]
[1766601782366,18.60163787,122.49,122.46,0.71]
[1766601784766,19.27163787,122.49,122.46,0.71]
[1766601786654,11.10767296,122.49,122.46,0.71]
[1766601792661,19.27163545,122.49,122.46,0.71]
[1766601805981,18.60163545,122.49,122.44,14.92]
[1766601806185,0.67,122.48,122.44,15.61]
[1766601806382,0.67,122.48,122.45,0.69]
[1766601808183,11.10767296,122.49,122.46,0.69]
[1766601810387,10.43767296,122.49,122.46,0.69]
[1766601810596,11.10767296,122.48,122.46,0.69]
[1766601818693,10.43767296,122.48,122.46,0.69]
[1766601819193,11.12767296,122.48,122.46,0.69]
[1766601826500,10.43767296,122.48,122.46,0.69]
[1766601830701,0.69,122.47,122.44,15.6]
[1766601830902,0.69,122.47,122.44,0.68]
[1766601831290,0.69,122.47,122.45,0.68]
[1766601832391,0.69,122.47,122.44,3.51370983]
[1766601832891,0.69,122.47,122.45,0.68]
[1766601836218,18.60231562,122.48,122.45,0.68]
[1766601836432,19.29231562,122.48,122.45,0.68]
[1766601838415,11.12767296,122.48,122.45,0.68]
[1766601838589,11.12767296,122.48,122.45,2.49383008]
[1766601838912,11.12767296,122.48,122.46,0.68]
[1766601838913,10.43767296,122.48,122.46,0.68]
[1766601839208,11.12767296,122.48,122.46,0.68]
[1766601839415,19.29229496,122.48,122.44,1.81383008]
[1766601839609,19.29229496,122.48,122.45,0.68]
[1766601841621,11.12767296,122.48,122.45,0.68]
[1766601842018,10.43767296,122.48,122.46,0.68]
[1766601842203,9.71767296,122.48,122.46,0.68]
[1766601842919,10.40767296,122.48,122.45,2.49383008]
[1766601844315,10.40767296,122.48,122.46,0.68]
[1766601845022,9.71767296,122.48,122.46,0.68]
[1766601845408,10.40767296,122.48,122.46,0.68]
[1766601847609,9.71767296,122.48,122.46,0.68]
[1766601848098,0.67,122.49,122.46,0.68]
[1766601849804,18.60129865,122.5,122.47,0.69]
[1766601850019,19.27129865,122.5,122.47,0.69]
[1766601850225,0.67,122.49,122.47,0.69]
[1766601850725,0.67,122.49,122.46,0.69]
[1766601860136,0.67,122.48,122.46,0.69]
[1766601862312,0.67,122.48,122.45,17.42383008]
[1766601862528,0.67,122.48,122.46,0.69]
[1766601865540,0.67,122.48,122.45,25.59035512]
[1766601865722,0.67,122.48,122.45,23.77652504]
[1766601865918,0.67,122.49,122.46,0.69]
[1766601870344,10.43767296,122.5,122.47,2.50383008]
[1766601870642,0.1,122.52,122.49,2.50383008]
[1766601870842,0.77,122.52,122.49,0.69]
[1766601871743,1.81383008,122.51,122.47,0.69]
[1766601871944,8.26194853,122.52,122.47,0.69]
[1766601871945,0.67,122.5,122.47,1.81383008]
[1766601872123,0.67,122.5,122.48,0.69]
[1766601872549,0.67,122.5,122.48,2.50383008]
[1766601872847,11.20767296,122.52,122.49,0.69]
[1766601873139,10.53767296,122.52,122.49,0.69]
[1766601873445,0.67,122.51,122.48,1.81383008]
[1766601873641,0.67,122.51,122.49,0.69]
[1766601873845,0.67,122.51,122.48,0.69]
[1766601874045,0.67,122.51,122.48,2.50383008]
[1766601875646,0.67,122.51,122.48,0.69]
[1766601875846,0.67,122.51,122.48,1.81383008]
[1766601876048,0.67,122.51,122.49,0.69]
[1766601877751,10.53767296,122.52,122.5,0.69]
[1766601880051,11.20767296,122.52,122.5,0.69]
[1766601881152,10.53767296,122.52,122.5,0.69]
[1766601881759,0.1,122.52,122.51,0.69]
[1766601884526,0.77,122.52,122.49,15.59]
[1766601885154,0.77,122.52,122.5,0.69]
[1766601892060,0.77,122.52,122.49,15.59]
[1766601892460,0.77,122.52,122.5,0.69]
[1766601893864,0.1,122.52,122.5,0.69]
[1766601899966,0.77,122.52,122.49,15.59]
[1766601900143,0.77,122.52,122.49,18.42179281]
[1766601900339,0.77,122.52,122.49,14.9]
[1766601900541,0.67,122.5,122.47,0.69]
[1766601900765,0.67,122.5,122.46,14.9]
[1766601900766,11.10767296,122.48,122.44,0.69]
[1766601901064,0.67,122.47,122.44,0.69]
[1766601903154,11.10767296,122.48,122.46,0.69]
[1766601903569,11.10767296,122.48,122.45,3.52179281]
[1766601905073,11.10767296,122.48,122.45,0.69]
[1766601905268,11.10767296,122.48,122.45,3.52179281]
[1766601906171,11.10767296,122.48,122.45,11.6883855]
[1766601906466,11.10767296,122.48,122.45,2.83179281]
[1766601906658,11.10767296,122.48,122.46,0.69]
[1766601907269,8.16290921,122.51,122.47,2.83179281]
[1766601907458,0.69,122.51,122.48,0.66]
[1766601907854,8.85266429,122.51,122.48,0.66]
[1766601908755,0.69,122.5,122.47,0.66]
[1766601909867,8.85266429,122.51,122.47,0.66]
[1766601910171,8.85266429,122.51,122.48,0.66]
[1766601910367,8.16266429,122.51,122.48,0.66]
[1766601910572,0.69,122.5,122.47,0.66]
[1766601910771,10.9944571,122.51,122.47,0.66]
[1766601910974,10.9944571,122.51,122.46,17.73179281]
[1766601911159,0.69,122.49,122.46,0.66]
[1766601911976,0.69,122.49,122.45,10.99812259]
[1766601912176,0.69,122.49,122.45,11.65812259]
[1766601912471,0.69,122.49,122.45,3.49179281]
[1766601913172,0.69,122.49,122.46,3.49179281]
[1766601915174,0.69,122.49,122.46,0.66]
[1766601915971,0.69,122.49,122.46,11.65759736]
[1766601916156,8.85285214,122.51,122.48,0.66]
[1766601917170,0.69,122.5,122.46,8.16580455]
[1766601917376,0.69,122.5,122.47,2.83179281]
[1766601918373,0.69,122.5,122.47,3.49179281]
[1766601919276,11.12767296,122.51,122.48,0.66]
[1766601922979,8.95218908,122.52,122.49,0.66]
[1766601923176,0.1,122.52,122.5,3.49179281]
[1766601923486,0.1,122.52,122.5,0.66]
[1766601923670,0.79,122.52,122.5,0.66]
[1766601928888,0.79,122.52,122.5,3.49179281]
[1766601930974,0.79,122.52,122.5,0.66]
[1766601931379,0.1,122.52,122.5,0.66]
[1766601932195,0.1,122.52,122.51,3.49179281]
[1766601932373,0.1,122.52,122.5,8.16301993]
[1766601932374,15.32083954,122.54,122.52,0.66]
[1766601932689,0.1,122.56,122.54,0.66]
[1766601932872,0.79,122.57,122.55,2.83179281]
[1766601933274,0.79,122.57,122.54,3.41179281]
[1766601934470,0.69,122.56,122.51,2.83179281]
[1766601934674,0.69,122.56,122.51,18.31179281]
[1766601936291,0.69,122.55,122.51,26.47438222]
[1766601937697,0.69,122.55,122.51,14.9]
[1766601938079,0.69,122.55,122.5,26.47476136]
[1766601938379,8.16012858,122.55,122.5,26.47476136]
[1766601938590,0.72,122.54,122.5,26.47476136]
[1766601938979,0.72,122.54,122.5,18.31179281]
[1766601939387,0.72,122.54,122.5,26.47501161]
[1766601940393,0.72,122.54,122.5,23.6432188]
[1766601940598,0.72,122.54,122.5,26.47501161]
[1766601942002,0.72,122.54,122.5,11.57501161]
[1766601947300,0.72,122.54,122.5,3.41179281]
[1766601951280,0.72,122.54,122.5,11.57495949]
[1766601952598,0.72,122.52,122.47,0.58]
[1766601952782,0.72,122.52,122.49,3.41179281]
[1766601952982,0.72,122.54,122.51,2.83179281]
[1766601953186,0.72,122.54,122.52,0.58]
[1766601953601,0.72,122.55,122.52,11.57364879]
[1766601955910,0.72,122.55,122.53,2.83179281]
[1766601956407,0.72,122.55,122.52,8.74185598]
[1766601956408,0.72,122.55,122.52,11.57364879]
[1766601957905,0.72,122.55,122.52,10.55321045]
[1766601960204,0.72,122.55,122.52,2.39135447]
[1766601963422,0.72,122.55,122.52,10.55312837]
[1766601963629,11.15767296,122.56,122.53,0.58]
[1766601964129,11.15767296,122.56,122.53,2.39135447]
[1766601964294,11.15767296,122.56,122.53,0.58]
[1766601966414,11.15767296,122.56,122.53,2.39135447]
[1766601966613,10.43767296,122.56,122.54,2.39135447]
[1766601967007,11.15767296,122.56,122.54,2.39135447]
[1766601967203,0.1,122.57,122.55,2.39135447]
[1766601967411,0.79,122.58,122.56,2.39135447]
[1766601968210,0.79,122.58,122.56,1.81135447]
[1766601969119,0.79,122.58,122.55,2.39135447]
[1766601969714,0.79,122.58,122.54,8.16013017]
[1766601969902,0.79,122.58,122.54,10.55148464]
[1766601970110,0.69,122.57,122.53,10.55253165]
[1766601970303,0.69,122.57,122.54,0.58]
[1766601971105,0.69,122.56,122.53,2.39135447]
[1766601972018,0.69,122.56,122.51,25.45373087]
[1766601972192,0.69,122.56,122.51,16.71135447]
[1766601972193,0.69,122.55,122.51,16.71135447]
[1766601972399,0.69,122.54,122.51,14.9]
[1766601972595,0.69,122.54,122.5,2.39135447]
[1766601973215,0.69,122.54,122.5,8.7432606]
[1766601973412,0.69,122.54,122.5,10.55461507]
[1766601974919,0.69,122.53,122.49,17.29135447]
[1766601975508,0.69,122.53,122.49,25.45525039]
[1766601976223,0.69,122.53,122.5,0.58]
[1766601977423,0.69,122.53,122.49,25.45525039]
[1766601978221,0.69,122.52,122.49,14.9]
[1766601978412,0.69,122.52,122.49,2.39135447]
[1766601978613,0.69,122.52,122.49,10.55524114]
[1766601979812,0.69,122.52,122.5,1.81135447]
[1766601980220,0.69,122.51,122.47,1.81135447]
[1766601980428,0.69,122.51,122.47,2.39135447]
[1766601980897,0.69,122.51,122.48,2.39135447]
[1766601981102,0.69,122.52,122.48,2.39135447]
[1766601981728,0.69,122.52,122.48,0.58]
[1766601981929,0.69,122.52,122.48,2.39135447]
[1766601982927,0.69,122.52,122.48,0.58]
[1766601983236,0.69,122.51,122.48,1.81135447]
[1766601984910,0.69,122.51,122.47,2.39135447]
[1766601985644,10.43767296,122.51,122.48,2.39135447]
[1766601985807,11.12767296,122.51,122.48,2.39135447]
[1766601986232,11.12767296,122.51,122.48,10.55592168]
[1766601986902,11.12767296,122.51,122.48,2.39135447]
[1766601987415,0.69,122.5,122.46,25.45703638]
[1766601987934,0.69,122.5,122.47,0.58]
[1766601990114,0.69,122.5,122.47,2.39135447]
[1766601990313,0.69,122.5,122.47,0.58]
[1766601990528,0.69,122.5,122.47,2.39135447]
[1766601992317,10.43767296,122.51,122.48,0.58]
[1766601992521,11.12767296,122.51,122.48,2.39135447]
[1766601992824,0.69,122.51,122.48,2.39135447]
[1766601993024,10.43767296,122.53,122.5,1.81135447]
[1766601993214,0.69,122.54,122.51,2.39135447]
[1766601997913,18.59731324,122.56,122.52,1.81135447]
[1766601998126,0.71,122.55,122.52,2.39135447]
[1766601999016,0.71,122.55,122.52,10.55325977]
[1766602001934,0.71,122.55,122.52,2.39135447]
[1766602003640,0.71,122.55,122.52,0.58]
[1766602003939,0.71,122.55,122.52,2.39135447]
[1766602006827,0.71,122.55,122.53,1.81135447]
[1766602011241,0.71,122.55,122.52,2.39135447]
[1766602014045,0.71,122.55,122.52,0.58]
[1766602015546,0.71,122.55,122.52,2.39135447]
[1766602015847,0.71,122.55,122.52,0.58]
[1766602016025,0.71,122.55,122.52,2.39135447]
[1766602017952,0.71,122.55,122.52,3.41037236]
[1766602022164,0.71,122.55,122.53,2.83037236]
[1766602022351,0.71,122.55,122.52,0.58]
[1766602022541,0.71,122.55,122.52,3.41037236]
[1766602033552,0.71,122.55,122.52,0.58]
[1766602036545,104.0,122.58,122.55,0.58]
[1766602036751,0.1,122.58,122.56,2.83037236]
[1766602036977,0.1,122.62,122.58,0.7]
[1766602037263,0.1,122.7,122.64,0.48]
[1766602037448,0.1,122.7,122.66,0.48]
[1766602037644,0.1,122.7,122.67,14.9]
[1766602038041,8.25002197,122.7,122.67,14.9]
[1766602038363,37.95080067,122.69,122.67,14.9]
[1766602038567,8.25080067,122.69,122.67,14.9]
[1766602038755,8.25080067,122.69,122.65,3.31037236]
[1766602038958,0.7,122.68,122.66,14.9]
[1766602039463,0.1,122.69,122.66,23.53257267]
[1766602039642,0.7,122.68,122.67,14.9]
[1766602040242,0.8,122.69,122.67,14.9]
[1766602040755,0.1,122.69,122.67,14.9]
[1766602040947,10.97930423,122.72,122.67,17.73037236]
[1766602041153,8.14893187,122.72,122.67,18.43037236]
[1766602041673,8.14893187,122.72,122.67,17.73037236]
[1766602041855,8.14893187,122.72,122.67,18.43037236]
[1766602042169,10.97930423,122.72,122.67,18.43037236]
[1766602042964,0.7,122.71,122.67,18.43037236]
[1766602043166,0.7,122.71,122.69,2.83037236]
[1766602043504,0.7,122.71,122.68,3.53037236]
[1766602043977,11.13767296,122.72,122.69,2.83037236]
[1766602044301,10.97502132,122.78,122.7,14.9]
[1766602044461,0.7,122.76,122.71,17.73037236]
[1766602044660,0.7,122.75,122.71,17.73037236]
[1766602044876,0.7,122.73,122.69,14.9]
[1766602045078,0.7,122.73,122.68,2.83037236]
[1766602045282,0.7,122.72,122.69,14.9]
[1766602046300,0.7,122.71,122.69,14.9]
[1766602048380,3.53037236,122.71,122.66,10.98285176]
[1766602048578,10.9799581,122.71,122.65,21.42107574]
[1766602048784,10.9799581,122.71,122.66,14.9]
[1766602048785,0.7,122.7,122.66,14.9]
[1766602049085,3.53037236,122.7,122.66,23.05257548]
[1766602049457,0.7,122.7,122.66,23.05257548]
[1766602049658,3.53037236,122.7,122.66,23.05257548]
[1766602051583,3.53037236,122.7,122.65,10.43767296]
[1766602051584,0.7,122.69,122.65,18.59087953]
[1766602051781,0.7,122.68,122.65,14.88]
[1766602052162,0.7,122.68,122.65,23.03327873]
[1766602052971,0.7,122.68,122.65,14.88]
[1766602053282,8.14996739,122.7,122.61,10.43767296]
[1766602053283,0.7,122.66,122.61,10.43767296]
[1766602053489,0.7,122.66,122.62,25.86525506]
[1766602056485,0.7,122.66,122.62,23.0348827]
[1766602058789,0.7,122.66,122.62,25.86525506]
[1766602060683,0.7,122.66,122.62,23.0348827]
[1766602060989,11.09767296,122.68,122.63,2.83037236]
[1766602061188,11.09767296,122.68,122.64,14.88]
[1766602061189,0.66,122.67,122.64,14.88]
[1766602066094,0.66,122.66,122.64,14.88]
[1766602068298,0.66,122.66,122.63,8.15418777]
[1766602068477,0.66,122.66,122.63,23.03418777]
[1766602068793,0.66,122.66,122.63,8.15418777]
[1766602070574,0.66,122.66,122.63,14.88]
[1766602072598,0.66,122.66,122.63,23.03453283]
[1766602076604,13.26804532,122.68,122.63,25.86490519]
[1766602076790,0.66,122.67,122.63,46.25143377]